bitfinex-derivatives/quotes_BTCF0:USTF0_20251028
["timestamp","ask_amount","ask_price","bid_price","bid_amount"]
[1761689184184,0.03370239,113030.0,113020.0,0.8820697]
[1761689184478,0.03370239,113030.0,113020.0,0.42066]
[1761689184679,0.03370239,113030.0,113020.0,0.55454]
[1761689184984,0.02470239,113030.0,113020.0,0.56954]
[1761689185284,0.02482284,113030.0,113020.0,0.43566]
[1761689185479,0.04852523,113030.0,113020.0,0.43566]
[1761689187185,0.40932523,113030.0,113020.0,0.07486]
[1761689188685,0.40932523,113030.0,113020.0,0.07342]
[1761689191189,0.44107395,113030.0,113020.0,0.017]
[1761689191487,0.68812254,113030.0,113020.0,0.017]
[1761689191686,0.68548254,113030.0,113020.0,0.017]
[1761689192586,0.75611867,113030.0,113020.0,0.017]
[1761689193080,0.74611867,113030.0,113020.0,0.017]
[1761689193490,0.77791426,113030.0,113020.0,0.03063]
[1761689193676,0.77791426,113030.0,113020.0,0.05312]
[1761689193878,0.70727813,113030.0,113020.0,0.07641]
[1761689194082,0.44114354,113030.0,113020.0,0.07641]
[1761689194283,0.683533,113030.0,113020.0,0.07641]
[1761689194472,0.65968744,113030.0,113020.0,0.017]
[1761689196081,0.65968744,113030.0,113020.0,0.05334]
[1761689196994,0.65968744,113030.0,113020.0,0.03016]
[1761689197172,0.65968744,113030.0,113020.0,0.017]
[1761689198486,0.68353701,113030.0,113020.0,0.017]
[1761689199389,0.65968744,113030.0,113020.0,0.017]
[1761689202375,0.65968744,113030.0,113020.0,0.05334]
[1761689203389,0.65968744,113030.0,113020.0,0.07663]
[1761689204396,0.65968744,113030.0,113020.0,0.017]
[1761689204585,0.70727813,113030.0,113020.0,0.017]
[1761689205093,0.7764353,113030.0,113020.0,0.017]
[1761689205686,0.53404584,113030.0,113020.0,0.017]
[1761689205887,0.72884461,113030.0,113020.0,0.017]
[1761689206095,0.48645515,113030.0,113020.0,0.07663]
[1761689206297,0.72884461,113030.0,113020.0,0.07663]
[1761689207597,0.72090912,113030.0,113020.0,0.07663]
[1761689209192,0.47851966,113030.0,113020.0,0.07663]
[1761689211592,0.72090912,113030.0,113020.0,0.07663]
[1761689214796,0.75270471,113030.0,113020.0,0.07663]
[1761689215388,0.66540223,113030.0,113020.0,0.07663]
[1761689216203,0.40936249,113030.0,113020.0,0.23171698]
[1761689216398,0.54304249,113030.0,113020.0,0.23171698]
[1761689216592,0.69812947,113030.0,113020.0,0.07663]
[1761689216788,0.04856249,113030.0,113020.0,0.83435698]
[1761689216999,0.02470239,113030.0,113020.0,0.38680396]
[1761689217198,0.02470239,113030.0,113020.0,0.23171698]
[1761689217402,0.02470239,113030.0,113020.0,0.43743]
[1761689218000,0.02470239,113030.0,113020.0,0.44007]
[1761689218502,0.02470239,113030.0,113020.0,0.43743]
[1761689219001,0.02470239,113030.0,113020.0,0.07663]
[1761689219199,0.02470239,113030.0,113020.0,0.43743]
[1761689219401,0.02470239,113030.0,113020.0,0.07663]
[1761689221699,0.02470239,113030.0,113020.0,0.43743]
[1761689222097,0.02470239,113030.0,113020.0,1.03743]
[1761689223008,0.02470239,113030.0,113020.0,0.76814673]
[1761689223400,0.02470239,113030.0,113020.0,0.77078673]
[1761689223996,0.02470239,113030.0,113020.0,0.76814673]
[1761689224397,0.02470239,113030.0,113020.0,0.77078673]
[1761689224697,0.02470239,113030.0,113020.0,0.76814673]
[1761689226298,0.02470239,113030.0,113020.0,0.77078673]
[1761689226497,0.02470239,113030.0,113020.0,0.76814673]
[1761689228207,0.001,113030.0,113020.0,0.77078673]
[1761689228911,0.001,113030.0,113020.0,0.77945431]
[1761689229110,0.05565569,113050.0,113040.0,0.05785]
[1761689229504,0.07886422,113050.0,113040.0,0.05785]
[1761689229808,0.43966422,113050.0,113040.0,0.05785]
[1761689229996,0.07886422,113050.0,113040.0,0.05785]
[1761689230198,0.04706863,113050.0,113040.0,0.05785]
[1761689230401,0.04706863,113050.0,113040.0,0.30009033]
[1761689230814,0.05306863,113050.0,113040.0,0.30273033]
[1761689231111,0.05506863,113050.0,113040.0,0.38855133]
[1761689231303,0.03120853,113050.0,113040.0,0.38855133]
[1761689231612,0.03120853,113050.0,113040.0,0.75199133]
[1761689231999,0.03120853,113050.0,113040.0,1.35199133]
[1761689234717,0.0238601,113060.0,113050.0,0.05669]
[1761689235018,0.0238601,113060.0,113050.0,0.88182363]
[1761689235315,0.0238601,113060.0,113050.0,0.88446363]
[1761689235915,0.007,113060.0,113050.0,0.88446363]
[1761689237315,0.007,113060.0,113050.0,0.79715254]
[1761689239718,0.007,113060.0,113050.0,0.95208178]
[1761689244520,0.007,113060.0,113050.0,1.55208178]
[1761689245122,0.51572924,113090.0,113080.0,0.05669]
[1761689245920,0.51572924,113090.0,113080.0,0.02157]
[1761689246118,0.51572924,113090.0,113080.0,0.03461]
[1761689246423,0.51572924,113090.0,113080.0,0.05669]
[1761689246826,0.53861465,113090.0,113080.0,0.05669]
[1761689247124,0.54061465,113090.0,113080.0,0.05669]
[1761689247323,0.70712311,113090.0,113060.0,0.05669]
[1761689247521,0.67065848,113070.0,113050.0,0.05669]
[1761689247728,0.67065848,113060.0,113050.0,0.05669]
[1761689247916,0.96182772,113060.0,113040.0,0.05669]
[1761689248116,0.67065848,113050.0,113030.0,0.05669]
[1761689248426,0.51572924,113040.0,113030.0,0.05669]
[1761689250918,0.51772924,113040.0,113030.0,0.05669]
[1761689252320,0.52681493,113040.0,113030.0,0.05669]
[1761689253030,0.81538417,113040.0,113030.0,0.01304]
[1761689253223,0.97295341,113040.0,113010.0,0.41749]
[1761689253529,0.97295341,113040.0,113010.0,0.05669]
[1761689253530,0.51592153,113020.0,113010.0,0.05669]
[1761689254415,0.64960153,113020.0,113010.0,0.05769]
[1761689254622,0.64960153,113020.0,113010.0,0.06969]
[1761689255019,0.64960153,113020.0,113010.0,0.05769]
[1761689255234,0.64960153,113020.0,113010.0,0.08469]
[1761689255425,0.49448,113020.0,113010.0,0.08469]
[1761689255823,0.49448,113020.0,113010.0,0.028]
[1761689256025,0.49448,113020.0,113010.0,0.06326]
[1761689256228,0.49448,113020.0,113010.0,0.06826]
[1761689256923,0.49448,113020.0,113010.0,0.08989]
[1761689258626,0.49448,113020.0,113010.0,0.06826]
[1761689259028,0.54303956,113020.0,113010.0,0.06826]
[1761689259432,0.5192238,113020.0,113010.0,0.06826]
[1761689259636,0.5192238,113020.0,113010.0,0.04592]
[1761689259830,0.5192238,113020.0,113010.0,0.06826]
[1761689260232,0.5192238,113020.0,113010.0,0.032]
[1761689261532,0.5192238,113020.0,113010.0,0.08989]
[1761689262132,0.5192238,113020.0,113010.0,0.05789]
[1761689262326,0.3855438,113020.0,113010.0,0.07089]
[1761689262532,0.5191838,113020.0,113010.0,0.07089]
[1761689263245,0.5211838,113020.0,113010.0,0.06989]
[1761689264330,0.5211838,113020.0,113010.0,0.05789]
[1761689264537,0.3875438,113020.0,113010.0,0.05789]
[1761689265338,0.3628,113020.0,113010.0,0.05789]
[1761689267034,0.002,113020.0,113010.0,0.41869]
[1761689267237,0.002,113020.0,113010.0,1.1098142]
[1761689267449,0.002,113020.0,113010.0,0.83483052]
[1761689267835,0.38461576,113050.0,113040.0,0.05789]
[1761689268039,0.38548613,113050.0,113040.0,0.05789]
[1761689269046,0.38748613,113050.0,113040.0,0.05789]
[1761689271036,0.02668613,113050.0,113040.0,0.05789]
[1761689272945,0.02668613,113050.0,113040.0,0.41869]
[1761689273850,0.02668613,113050.0,113040.0,0.74370632]
[1761689274245,0.02468613,113050.0,113040.0,0.74370632]
[1761689274447,0.02468613,113050.0,113040.0,0.74470632]
[1761689274749,0.02468613,113050.0,113040.0,0.43269]
[1761689275841,0.02468613,113050.0,113040.0,0.75770632]
[1761689277142,0.02468613,113050.0,113040.0,0.07189]
[1761689277353,0.02468613,113050.0,113040.0,0.58765443]
[1761689280851,0.02468613,113050.0,113040.0,0.22685443]
[1761689281151,0.02468613,113050.0,113040.0,0.83107966]
[1761689281354,0.02381576,113060.0,113050.0,0.05789]
[1761689281654,0.02381576,113060.0,113050.0,0.70729443]
[1761689281851,0.02381576,113060.0,113050.0,0.55233]
[1761689282054,0.02381576,113060.0,113050.0,0.34649443]
[1761689282659,0.02381576,113060.0,113050.0,0.70729443]
[1761689283757,0.02381576,113060.0,113050.0,0.55233]
[1761689283967,0.02381576,113060.0,113050.0,0.34649443]
[1761689284760,0.38461576,113060.0,113050.0,0.34649443]
[1761689284954,0.38461576,113060.0,113050.0,0.05789]
[1761689285161,0.57137578,113060.0,113050.0,0.05789]
[1761689285362,0.57137584,113060.0,113050.0,0.05789]
[1761689285766,0.41641141,113060.0,113050.0,0.05789]
[1761689286065,0.60779071,113060.0,113040.0,0.03595]
[1761689286262,0.6811613,113050.0,113030.0,0.05764]
[1761689286459,0.53958336,113040.0,113030.0,0.05764]
[1761689287066,0.53958411,113040.0,113030.0,0.05764]
[1761689287459,0.72630541,113040.0,113020.0,0.05764]
[1761689287654,0.67322411,113030.0,113020.0,0.03595]
[1761689287855,0.67322411,113030.0,113010.0,0.05748]
[1761689288053,0.51576443,113020.0,113010.0,0.05748]
[1761689289361,0.3608,113020.0,113010.0,0.05748]
[1761689290570,0.3608,113030.0,113020.0,0.05638]
[1761689290768,0.49448,113030.0,113020.0,0.05638]
[1761689291159,0.51829968,113040.0,113030.0,0.05574]
[1761689291566,0.55005655,113040.0,113020.0,0.05574]
[1761689291772,0.3608,113030.0,113020.0,0.05574]
[1761689293262,0.38531053,113030.0,113020.0,0.05574]
[1761689294076,0.02451053,113030.0,113020.0,0.05574]
[1761689294370,0.38531053,113030.0,113020.0,0.05574]
[1761689296664,0.40913021,113030.0,113020.0,0.05574]
[1761689296972,0.40913021,113030.0,113020.0,0.03454]
[1761689297176,0.40913021,113030.0,113020.0,0.05574]
[1761689298576,0.73411689,113030.0,113010.0,0.05635]
[1761689298780,0.3608,113020.0,113010.0,0.05635]
[1761689298972,0.38531053,113020.0,113010.0,0.05635]
[1761689299676,0.84401721,113020.0,113010.0,0.03515]
[1761689299872,0.84401721,113020.0,113010.0,0.01376]
[1761689300576,0.51903053,113020.0,113010.0,0.05635]
[1761689302672,0.52769631,113020.0,113010.0,0.05635]
[1761689305678,0.38531053,113020.0,113010.0,0.05635]
[1761689305875,0.39428769,113020.0,113010.0,0.05635]
[1761689306074,0.38531053,113020.0,113010.0,0.05635]
[1761689308281,0.02451053,113020.0,113010.0,0.05635]
[1761689308778,0.38531053,113020.0,113010.0,0.05635]
[1761689311379,0.02451053,113020.0,113010.0,0.05635]
[1761689311776,0.38531053,113020.0,113010.0,0.05635]
[1761689314174,0.38531053,113020.0,113010.0,0.06735]
[1761689314379,0.38531053,113020.0,113010.0,0.06835]
[1761689314766,0.38531053,113020.0,113010.0,0.05735]
[1761689314964,0.38531053,113020.0,113010.0,0.05635]
[1761689319385,0.02451053,113020.0,113010.0,0.05635]
[1761689319586,0.38531053,113020.0,113010.0,0.05635]
[1761689320084,0.02451053,113020.0,113010.0,0.05635]
[1761689320283,0.38531053,113020.0,113010.0,0.05635]
[1761689322388,0.02451053,113020.0,113010.0,0.05635]
[1761689322578,0.02451053,113020.0,113010.0,0.29865705]
[1761689322773,0.02451053,113020.0,113010.0,0.65945705]
[1761689323087,0.02451053,113020.0,113010.0,0.66209705]
[1761689323386,0.02451053,113020.0,113010.0,0.65945705]
[1761689328088,0.02451053,113020.0,113010.0,0.29865705]
[1761689330881,0.38531053,113020.0,113010.0,0.05635]
[1761689331082,0.38531053,113020.0,113010.0,0.18987]
[1761689331395,0.54040881,113020.0,113010.0,0.05635]
[1761689331587,0.54040881,113020.0,113010.0,0.21144828]
[1761689331892,0.54040881,113020.0,113010.0,0.05635]
[1761689332092,0.38531053,113020.0,113010.0,0.05635]
[1761689332694,0.38531053,113020.0,113010.0,0.21144828]
[1761689333197,0.38531053,113020.0,113010.0,0.57224828]
[1761689333198,0.02451053,113020.0,113010.0,0.57224828]
[1761689335096,0.02451053,113020.0,113010.0,0.21144828]
[1761689336190,0.02451053,113020.0,113010.0,0.05635]
[1761689336390,0.02451053,113020.0,113010.0,0.21144828]
[1761689337594,0.38531053,113020.0,113010.0,0.21144828]
[1761689338497,0.85284677,113020.0,113010.0,0.05635]
[1761689338686,0.85284677,113020.0,113000.0,0.05975619]
[1761689338989,0.51589828,113010.0,113000.0,0.05975619]
[1761689339195,0.54040881,113010.0,113000.0,0.05975619]
[1761689339995,0.54040881,113010.0,113000.0,0.07175619]
[1761689340395,0.54040881,113010.0,113000.0,0.06075619]
[1761689340694,0.54040881,113010.0,113000.0,0.07375619]
[1761689342198,0.69550709,113010.0,113000.0,0.01407619]
[1761689342593,0.54040881,113010.0,113000.0,0.01407619]
[1761689343599,0.54040881,113010.0,113000.0,0.03736619]
[1761689344095,0.54040881,113010.0,113000.0,0.01407619]
[1761689344299,0.69814709,113010.0,113000.0,0.01407619]
[1761689344596,0.72196677,113010.0,113000.0,0.01407619]
[1761689344895,0.79110803,113010.0,113000.0,0.01407619]
[1761689345097,0.79110803,113010.0,112980.0,0.05799]
[1761689345098,0.15509828,112990.0,112980.0,0.05799]
[1761689345289,1.03414378,112990.0,112980.0,0.01315]
[1761689345494,1.03414378,112990.0,112980.0,0.05799]
[1761689345694,1.01021828,112990.0,112980.0,0.05799]
[1761689346000,1.03421823,112990.0,112980.0,0.05799]
[1761689346302,1.01029335,112990.0,112980.0,0.05799]
[1761689346595,0.85519507,112990.0,112980.0,0.05799]
[1761689346800,0.85519507,112990.0,112980.0,0.21308828]
[1761689346801,0.49439507,112990.0,112980.0,0.21308828]
[1761689347492,0.65049335,112990.0,112980.0,0.05799]
[1761689350795,0.65058184,112990.0,112980.0,0.05799]
[1761689351400,1.16920861,112990.0,112960.0,0.05603]
[1761689351601,0.51598677,112970.0,112960.0,0.05603]
[1761689351805,0.49443992,112970.0,112960.0,0.05603]
[1761689351992,0.64962669,112970.0,112960.0,0.05603]
[1761689352605,0.64962669,112970.0,112960.0,0.06103]
[1761689352996,0.64962669,112970.0,112960.0,0.08303]
[1761689353397,0.65843315,112970.0,112960.0,0.08303]
[1761689360908,0.65843315,112970.0,112960.0,0.06148]
[1761689361108,0.65843315,112970.0,112960.0,0.08303]
[1761689362905,0.50324638,112970.0,112960.0,0.08303]
[1761689363106,0.65843315,112970.0,112960.0,0.08303]
[1761689363517,0.65843315,112970.0,112960.0,0.23821677]
[1761689364105,0.65843315,112970.0,112960.0,0.08303]
[1761689365807,0.68225499,112970.0,112960.0,0.08303]
[1761689366008,0.52706822,112970.0,112960.0,0.08303]
[1761689366202,0.68225499,112970.0,112960.0,0.08303]
[1761689368213,0.02390176,112970.0,112960.0,0.39340354]
[1761689368419,0.02390176,112970.0,112960.0,0.23821677]
[1761689368723,0.17908853,112970.0,112960.0,0.23821677]
[1761689368908,0.02390176,112970.0,112960.0,0.23821677]
[1761689369416,0.17908853,112970.0,112960.0,0.07803]
[1761689369615,0.54863134,112970.0,112960.0,0.05748]
[1761689369814,0.70381811,112970.0,112960.0,0.07903]
[1761689370119,0.54863134,112970.0,112960.0,0.07903]
[1761689370304,0.70481811,112970.0,112960.0,0.07803]
[1761689370820,0.54963134,112970.0,112960.0,0.07803]
[1761689371014,0.54963134,112970.0,112960.0,0.05603]
[1761689371219,0.55863134,112970.0,112960.0,0.05603]
[1761689371623,0.54963134,112970.0,112960.0,0.05603]
[1761689371817,0.56063134,112970.0,112960.0,0.05603]
[1761689373217,0.71581811,112970.0,112950.0,0.02143]
[1761689373416,0.95996031,112960.0,112930.0,0.05591]
[1761689373610,1.03197354,112940.0,112930.0,0.05591]
[1761689373808,1.18567479,112940.0,112930.0,0.05591]
[1761689374009,1.18567479,112940.0,112920.0,0.0585888]
[1761689374010,1.33086156,112940.0,112920.0,0.0585888]
[1761689374217,0.67117354,112930.0,112920.0,7.88e-05]
[1761689374521,0.64962677,112930.0,112920.0,0.0587588]
[1761689375117,0.64962677,112930.0,112920.0,0.0827588]
[1761689375622,0.80481354,112930.0,112920.0,0.0587588]
[1761689375823,0.65062677,112930.0,112920.0,0.0817588]
[1761689376121,0.51698677,112930.0,112920.0,0.0867588]
[1761689376314,0.49544,112930.0,112920.0,0.0867588]
[1761689376513,0.82581354,112930.0,112920.0,0.0280788]
[1761689376713,0.81581354,112930.0,112920.0,0.0230788]
[1761689376920,1.31100031,112930.0,112920.0,0.0280788]
[1761689377122,0.99100031,112930.0,112920.0,0.0280788]
[1761689377315,1.19730581,112930.0,112900.0,0.025]
[1761689377618,1.04732944,112910.0,112900.0,0.025]
[1761689377824,1.18096944,112910.0,112900.0,0.025]
[1761689378326,1.18107929,112910.0,112900.0,0.025]
[1761689378515,1.04743929,112910.0,112900.0,0.025]
[1761689378714,1.18111929,112910.0,112900.0,0.025]
[1761689379023,1.18311929,112910.0,112900.0,0.10968]
[1761689379217,1.18311929,112910.0,112900.0,0.11468]
[1761689380123,1.19209773,112910.0,112900.0,0.11468]
[1761689381934,0.86636829,112910.0,112900.0,0.11468]
[1761689383737,0.72370985,112910.0,112900.0,0.11468]
[1761689383922,0.85742985,112910.0,112900.0,0.11468]
[1761689384519,1.20662581,112910.0,112900.0,0.11468]
[1761689385029,1.21551071,112910.0,112900.0,0.11468]
[1761689385233,0.88978127,112910.0,112900.0,0.11468]
[1761689387630,1.21551071,112910.0,112900.0,0.11468]
[1761689391636,1.08179071,112910.0,112900.0,0.11468]
[1761689391835,0.75606127,112910.0,112900.0,0.11468]
[1761689392338,0.88974127,112910.0,112900.0,0.11468]
[1761689393338,0.75606127,112910.0,112900.0,0.11468]
[1761689393528,0.88974127,112910.0,112900.0,0.11468]
[1761689394442,0.88974127,112910.0,112900.0,0.09165]
[1761689394640,0.88974127,112910.0,112900.0,0.11468]
[1761689397741,0.75606127,112910.0,112900.0,0.11468]
[1761689397938,0.02557637,112910.0,112900.0,0.80120944]
[1761689398137,0.55001655,112930.0,112920.0,0.05868]
[1761689398343,0.5590426,112930.0,112920.0,0.05868]
[1761689398543,0.51825968,112930.0,112920.0,0.05868]
[1761689398748,0.38461968,112930.0,112920.0,0.05868]
[1761689398943,0.38461968,112930.0,112920.0,0.38440944]
[1761689398944,0.13372,112930.0,112920.0,0.38440944]
[1761689399239,0.41635611,112940.0,112930.0,0.05868]
[1761689399439,0.55007611,112940.0,112930.0,0.21396034]
[1761689399639,0.41642773,112940.0,112930.0,0.21396034]
[1761689399943,0.55014773,112940.0,112930.0,0.21396034]
[1761689400341,0.39262849,112940.0,112930.0,0.21660034]
[1761689400644,0.41643673,112940.0,112930.0,0.05868]
[1761689400945,0.41843673,112940.0,112930.0,0.21396034]
[1761689401130,0.44221918,112940.0,112930.0,0.21396034]
[1761689401336,0.39462849,112940.0,112930.0,0.05868]
[1761689401537,0.03382849,112940.0,112930.0,0.05868]
[1761689401737,0.02589325,112940.0,112930.0,0.83598541]
[1761689402041,0.02589325,112940.0,112930.0,0.74479971]
[1761689402347,0.02589325,112940.0,112930.0,0.83334541]
[1761689402551,0.02589325,112940.0,112930.0,0.41948]
[1761689403048,0.05765012,112940.0,112930.0,0.41948]
[1761689404156,0.02589325,112940.0,112930.0,0.05868]
[1761689404644,0.02589325,112940.0,112930.0,0.41948]
[1761689410345,0.04897619,112940.0,112930.0,0.41948]
[1761689411154,0.40977619,112940.0,112930.0,0.05868]
[1761689411450,0.04897619,112940.0,112930.0,0.05868]
[1761689411848,0.04897619,112940.0,112930.0,0.41948]
[1761689413854,0.02515456,112940.0,112930.0,0.41948]
[1761689414251,0.00207162,112940.0,112930.0,0.41948]
[1761689415149,0.02514414,112940.0,112930.0,0.41948]
[1761689416458,0.02514414,112940.0,112930.0,0.74743971]
[1761689416659,0.00207162,112940.0,112930.0,0.74743971]
[1761689416859,0.00207162,112940.0,112930.0,0.74479971]
[1761689417055,0.00207162,112940.0,112930.0,0.83598531]
[1761689417863,0.3608,112960.0,112950.0,0.05687]
[1761689418052,0.38386219,112960.0,112950.0,0.05687]
[1761689418248,0.02306219,112960.0,112950.0,0.05687]
[1761689418755,0.02306219,112960.0,112950.0,0.1480398]
[1761689418957,0.02306219,112960.0,112950.0,0.83415951]
[1761689419165,0.002,112960.0,112950.0,0.83415951]
[1761689419461,0.002,112960.0,112950.0,0.83151951]
[1761689419658,0.002,112960.0,112950.0,0.41767]
[1761689420158,0.0250524,112960.0,112950.0,0.41767]
[1761689420458,0.0440524,112960.0,112950.0,0.41967]
[1761689420654,0.0440524,112960.0,112950.0,0.42869948]
[1761689421164,0.021,112960.0,112950.0,0.42869948]
[1761689421370,0.021,112960.0,112950.0,0.58391784]
[1761689421963,0.021,112960.0,112950.0,0.57488836]
[1761689425551,0.021,112960.0,112950.0,0.58383711]
[1761689426566,0.021,112960.0,112950.0,0.57488836]
[1761689427365,0.021,112960.0,112950.0,0.41967]
[1761689427565,0.021,112960.0,112950.0,0.5081999]
[1761689427770,0.021,112960.0,112950.0,0.83604587]
[1761689428267,0.021,112960.0,112950.0,0.84242648]
[1761689428777,0.021,112960.0,112950.0,0.51722051]
[1761689430158,0.021,112960.0,112950.0,0.84242648]
[1761689430360,0.021,112960.0,112950.0,0.05887]
[1761689430567,0.73007207,112960.0,112950.0,0.03679]
[1761689430865,0.7538937,112960.0,112950.0,0.03679]
[1761689431071,0.7538937,112960.0,112950.0,0.002]
[1761689431767,0.7538937,112960.0,112950.0,0.03679]
[1761689432080,0.7538937,112960.0,112950.0,0.05887]
[1761689432371,0.42868773,112960.0,112950.0,0.05887]
[1761689432778,0.40968773,112960.0,112950.0,0.05687]
[1761689432966,0.42668773,112960.0,112950.0,0.05887]
[1761689436281,0.7518937,112960.0,112950.0,0.05887]
[1761689436681,0.7545337,112960.0,112950.0,0.002]
[1761689436889,0.78365057,112960.0,112940.0,0.05918]
[1761689437175,0.81964597,112950.0,112940.0,0.05918]
[1761689437375,0.84271207,112950.0,112940.0,0.05918]
[1761689437577,0.9091737,112950.0,112920.0,0.05889]
[1761689437773,0.9091737,112950.0,112920.0,0.03565]
[1761689437774,1.04680597,112930.0,112920.0,0.03565]
[1761689437979,1.20367207,112930.0,112920.0,0.0131]
[1761689438382,1.20631207,112930.0,112920.0,0.0131]
[1761689438571,1.20631207,112930.0,112910.0,0.05878]
[1761689438773,0.3608,112920.0,112910.0,0.05878]
[1761689439380,0.60360427,112920.0,112900.0,0.08378]
[1761689439572,0.73744427,112910.0,112900.0,0.08378]
[1761689440575,0.49464,112910.0,112900.0,0.08378]
[1761689441475,0.50338118,112910.0,112900.0,0.08878]
[1761689441980,0.50638118,112910.0,112900.0,0.09478]
[1761689447179,0.003,112910.0,112900.0,0.78695357]
[1761689447377,0.36949945,112930.0,112920.0,0.05878]
[1761689447572,0.50329945,112930.0,112920.0,0.05878]
[1761689447770,0.74610372,112930.0,112920.0,0.03554]
[1761689448081,0.74610372,112930.0,112920.0,0.05878]
[1761689448576,0.74610372,112930.0,112920.0,0.05978]
[1761689448784,0.74910372,112930.0,112920.0,0.001]
[1761689449268,0.50629945,112930.0,112920.0,0.001]
[1761689449473,0.74910372,112930.0,112920.0,0.001]
[1761689450282,0.74910372,112930.0,112920.0,0.03654]
[1761689452586,0.74910372,112930.0,112920.0,0.01399]
[1761689452784,0.74910372,112930.0,112920.0,0.001]
[1761689453175,0.74910372,112930.0,112920.0,0.05978]
[1761689453377,0.37249945,112930.0,112920.0,0.21514228]
[1761689453583,0.50629945,112930.0,112920.0,0.21514228]
[1761689453884,0.3638,112930.0,112920.0,0.37050456]
[1761689454788,0.003,112930.0,112920.0,0.37050456]
[1761689455083,0.003,112930.0,112920.0,0.45905776]
[1761689455282,0.003,112930.0,112920.0,0.39095971]
[1761689455488,0.003,112930.0,112920.0,0.52475971]
[1761689455988,0.003,112930.0,112920.0,0.88555971]
[1761689456889,0.003,112930.0,112920.0,0.79700651]
[1761689457591,0.003,112930.0,112920.0,0.55438]
[1761689458089,0.003,112930.0,112920.0,0.6429334]
[1761689458796,0.003,112930.0,112920.0,0.88555991]
[1761689459990,0.003,112930.0,112920.0,0.84055991]
[1761689460191,0.003,112930.0,112920.0,1.47609991]
[1761689460578,0.003,112930.0,112920.0,0.87873991]
[1761689461095,0.3608,112960.0,112950.0,0.05878]
[1761689461281,0.38468514,112960.0,112950.0,0.05878]
[1761689461478,0.38468514,112960.0,112950.0,0.30140651]
[1761689461680,0.02388514,112960.0,112950.0,0.38993631]
[1761689461990,0.4048,112970.0,112960.0,0.05878]
[1761689462190,0.42861371,112970.0,112960.0,0.19262]
[1761689463389,0.43161371,112970.0,112960.0,0.19262]
[1761689464188,0.43061371,112970.0,112960.0,0.19262]
[1761689464992,0.43361371,112970.0,112960.0,0.19262]
[1761689466994,0.43361371,112970.0,112960.0,0.88720891]
[1761689466995,0.005,112970.0,112960.0,0.88720891]
[1761689467194,0.40447,112980.0,112970.0,0.05796]
[1761689467382,0.42824946,112980.0,112970.0,0.05796]
[1761689469089,0.43024946,112980.0,112970.0,0.05796]
[1761689469287,0.43524946,112980.0,112970.0,0.05796]
[1761689470390,0.07444946,112980.0,112970.0,0.05796]
[1761689471290,0.06944946,112980.0,112970.0,0.05796]
[1761689471483,0.43124946,112980.0,112970.0,0.05996]
[1761689471685,0.07044946,112980.0,112970.0,0.05996]
[1761689471887,0.43124946,112980.0,112970.0,0.05996]
[1761689473694,0.40747,112980.0,112970.0,0.05996]
[1761689475903,0.003,112980.0,112970.0,0.66602651]
[1761689476093,0.003,112980.0,112970.0,0.75190051]
[1761689476600,0.04803,112980.0,112970.0,0.42076]
[1761689477702,0.04803,112980.0,112970.0,0.05996]
[1761689478195,0.05923,112980.0,112970.0,0.18018]
[1761689478401,0.42003,112980.0,112970.0,0.18018]
[1761689478700,0.42003,112980.0,112970.0,0.19339]
[1761689478902,0.66265651,112980.0,112970.0,0.002]
[1761689479103,0.79633651,112980.0,112970.0,0.002]
[1761689479297,0.81930031,112980.0,112970.0,0.002]
[1761689480905,0.5766738,112980.0,112970.0,0.04501]
[1761689481312,0.5766738,112980.0,112970.0,0.002]
[1761689481599,0.81930031,112980.0,112970.0,0.02335]
[1761689481799,0.81930031,112980.0,112970.0,0.002]
[1761689484195,0.5766738,112980.0,112970.0,0.002]
[1761689485708,0.81930031,112980.0,112970.0,0.002]
[1761689486095,0.84312538,112980.0,112970.0,0.002]
[1761689486605,0.04503,112950.0,112940.0,0.18968]
[1761689487207,0.02232,112950.0,112940.0,0.18968]
[1761689487512,0.40583,112960.0,112950.0,0.05622]
[1761689487905,0.40583,112970.0,112960.0,0.05622]
[1761689488105,0.42884533,112970.0,112960.0,0.29884651]
[1761689488302,0.42884533,112970.0,112960.0,0.05622]
[1761689488606,0.06804533,112970.0,112960.0,0.05622]
[1761689489403,0.42884533,112970.0,112960.0,0.05622]
[1761689489607,0.04503,112970.0,112960.0,0.05622]
[1761689490406,0.04503,112970.0,112960.0,0.05722]
[1761689490407,0.04903,112970.0,112960.0,0.05722]
[1761689491310,0.04903,112970.0,112960.0,0.36761032]
[1761689492001,0.07206088,112970.0,112960.0,0.36761032]
[1761689492402,0.04935088,112970.0,112960.0,0.50129032]
[1761689492798,0.02703088,112970.0,112960.0,0.50129032]
[1761689493406,0.04935088,112970.0,112960.0,0.50129032]
[1761689493604,0.07206088,112970.0,112960.0,0.50129032]
[1761689494007,0.004,112970.0,112960.0,0.95325212]
[1761689494213,0.004,112970.0,112960.0,0.86473032]
[1761689494513,0.59153796,112990.0,112980.0,0.05708]
[1761689494809,0.6145681,112990.0,112980.0,0.21227516]
[1761689495312,0.6257681,112990.0,112980.0,0.04374]
[1761689495605,0.6257681,112990.0,112960.0,0.19259]
[1761689495606,0.04283,112970.0,112960.0,0.19259]
[1761689495807,0.5818553,112970.0,112960.0,0.19259]
[1761689496199,0.2210553,112970.0,112960.0,0.34778516]
[1761689496404,0.5818553,112970.0,112960.0,0.34778516]
[1761689496611,0.2210553,112970.0,112960.0,0.34578516]
[1761689496912,0.06586014,112970.0,112960.0,0.34578516]
[1761689497208,0.06586014,112970.0,112960.0,0.50098032]
[1761689497416,0.06986014,112970.0,112960.0,0.19259]
[1761689497909,0.43066014,112970.0,112960.0,0.19263]
[1761689498103,0.44212014,112970.0,112960.0,0.19263]
[1761689498408,0.43812014,112970.0,112960.0,0.19063]
[1761689498710,0.44312014,112970.0,112960.0,0.19563]
[1761689498915,0.68561997,112970.0,112960.0,0.005]
[1761689499106,0.70948031,112970.0,112960.0,0.005]
[1761689499413,0.44312014,112970.0,112960.0,0.005]
[1761689500103,0.46498048,112970.0,112960.0,0.005]
[1761689500308,0.46498048,112970.0,112960.0,0.04974]
[1761689500904,0.44112014,112970.0,112960.0,0.04974]
[1761689502909,0.56330014,112970.0,112960.0,0.06308]
[1761689503216,0.42966014,112970.0,112960.0,0.06308]
[1761689506613,0.06886014,112970.0,112960.0,0.06308]